bitfinex/quotes_ETHUSD_20251124
["timestamp","ask_amount","ask_price","bid_price","bid_amount"]
[1763976691034,0.002,2803.0,2802.6,2.2554887]
[1763976691556,0.002,2803.0,2802.6,4.99001196]
[1763976692046,0.002,2803.0,2802.6,1.42189664]
[1763976692383,0.002,2803.0,2802.6,1.41249664]
[1763976692782,0.002,2803.0,2802.6,4.99001196]
[1763976692947,0.002,2803.0,2802.6,8.42561196]
[1763976693150,0.002,2803.0,2802.6,6.17999685]
[1763976693396,0.002,2803.0,2802.6,8.82619696]
[1763976694253,0.002,2803.0,2802.6,7.25366796]
[1763976694455,0.002,2803.0,2802.6,3.66889664]
[1763976694654,0.002,2803.0,2802.6,1.42189664]
[1763976694874,0.002,2803.0,2802.6,4.99001196]
[1763976695079,0.002,2803.0,2802.6,8.71938816]
[1763976695393,0.002,2803.0,2802.6,1.91149784]
[1763976695990,0.4669,2802.7,2802.1,6.69142396]
[1763976696189,0.4649,2802.6,2802.5,0.1]
[1763976696939,0.4839,2802.7,2802.6,0.405504]
[1763976697092,0.002,2802.7,2802.6,0.505504]
[1763976697408,0.002,2802.7,2802.6,1.65389664]
[1763976697707,0.002,2802.7,2802.6,2.4790287]
[1763976697900,0.002,2802.7,2802.6,2.3790287]
[1763976698095,0.002,2802.7,2802.6,2.4790287]
[1763976698488,0.002,2802.7,2802.6,6.04714402]
[1763976698711,0.002,2802.7,2802.6,9.78815302]
[1763976698919,0.002,2802.7,2802.6,6.04714402]
[1763976699577,0.002,2802.7,2802.6,2.4790287]
[1763976699778,0.002,2802.7,2802.6,2.3884287]
[1763976699997,0.002,2802.7,2802.6,1.47203606]
[1763976700209,0.002,2802.7,2802.6,0.737504]
[1763976700509,0.4559,2802.7,2802.6,0.1]
[1763976700876,0.9358,2802.7,2802.3,6.79142396]
[1763976701078,0.9358,2802.7,2802.4,0.9111424]
[1763976701275,0.9358,2802.7,2802.6,0.1]
[1763976701276,0.4559,2802.7,2802.6,0.1]
[1763976701476,0.002,2802.7,2802.5,0.505504]
[1763976701782,0.002,2802.7,2802.6,0.1]
[1763976702188,0.9358,2802.7,2802.6,0.1]
[1763976703088,0.9358,2802.7,2802.5,0.405504]
[1763976703291,0.9338,2802.6,2802.5,0.405504]
[1763976703502,0.002,2802.7,2802.6,0.1]
[1763976703879,0.4551,2802.7,2802.5,0.405504]
[1763976704079,0.0012,2802.7,2802.5,0.405504]
[1763976704500,0.4811,2802.7,2802.6,0.1]
[1763976704903,0.935,2802.7,2802.5,0.405504]
[1763976705089,0.0012,2802.7,2802.6,0.1]
[1763976705496,0.0012,2802.7,2802.6,0.13568115]
[1763976705818,0.0012,2802.7,2802.6,1.44817779]
[1763976705996,0.0012,2802.7,2802.6,5.89806209]
[1763976706193,0.0012,2802.7,2802.6,8.78028094]
[1763976706716,0.0012,2802.7,2802.6,8.78968094]
[1763976707099,0.0012,2802.7,2802.6,25.30299394]
[1763976707304,0.0012,2802.7,2802.6,10.32201394]
[1763976708104,0.0012,2802.7,2802.6,5.91608662]
[1763976708304,0.0012,2802.7,2802.6,8.88220194]
[1763976709109,0.0012,2802.7,2802.6,8.89160194]
[1763976709298,0.0012,2802.7,2802.6,6.10278094]
[1763976709499,0.0012,2802.7,2802.6,6.13846209]
[1763976709696,0.0012,2802.7,2802.6,6.50457062]
[1763976709901,0.0012,2802.7,2802.6,6.12906209]
[1763976710215,0.0012,2802.7,2802.6,6.09338094]
[1763976710520,0.0012,2802.7,2802.6,6.13846209]
[1763976710769,0.0012,2802.7,2802.6,6.10278094]
[1763976710934,0.0012,2802.7,2802.6,9.01180709]
[1763976711111,0.0012,2802.7,2802.6,6.10278094]
[1763976711322,0.002,2803.0,2802.9,0.505504]
[1763976711699,0.002,2803.0,2802.9,0.405504]
[1763976711700,0.948,2803.0,2802.9,0.405504]
[1763976711927,0.948,2803.0,2802.9,0.505504]
[1763976712134,0.474,2803.0,2802.9,0.505504]
[1763976712463,0.002,2803.0,2802.9,0.505504]
[1763976712677,0.002,2803.0,2802.9,1.003534]
[1763976713707,0.002,2803.0,2802.9,1.03921133]
[1763976714807,0.002,2803.0,2802.9,4.61634474]
[1763976715007,0.002,2803.0,2802.9,1.04861133]
[1763976715250,0.948,2803.0,2802.9,1.134534]
[1763976715545,0.002,2803.0,2802.9,0.636504]
[1763976715710,0.002,2803.0,2802.9,0.77218133]
[1763976716411,0.002,2803.0,2802.9,4.33991474]
[1763976716625,0.002,2803.0,2802.9,0.77218133]
[1763976716918,0.002,2803.0,2802.9,4.34931474]
[1763976717126,0.002,2803.0,2802.9,5.14103048]
[1763976717449,0.002,2803.0,2802.9,8.53807979]
[1763976717614,0.002,2803.0,2802.9,8.66641179]
[1763976717813,0.002,2803.0,2802.9,6.01234579]
[1763976718045,0.002,2803.0,2802.9,8.91605879]
[1763976718553,0.002,2803.0,2802.9,8.72693779]
[1763976718914,0.002,2803.0,2802.9,7.81994515]
[1763976719115,0.002,2803.0,2802.9,7.82934515]
[1763976719352,0.002,2803.0,2802.9,14.96319726]
[1763976719655,0.002,2803.0,2802.9,15.56154826]
[1763976720225,0.002,2803.0,2802.9,12.23920526]
[1763976720568,0.002,2803.0,2802.9,1.19721974]
[1763976720733,0.002,2803.0,2802.9,4.30423741]
[1763976720914,0.002,2803.0,2802.9,0.405504]
[1763976720915,0.474,2803.0,2802.9,0.405504]
[1763976721120,0.002,2803.0,2802.9,4.30423741]
[1763976721423,0.002,2803.0,2802.9,9.26575041]
[1763976721739,0.002,2803.0,2802.9,4.30423741]
[1763976721915,0.002,2803.0,2802.9,5.082146]
[1763976722118,0.002,2803.0,2802.9,9.581483]
[1763976722319,0.002,2803.3,2803.0,1.31249664]
[1763976722535,0.002,2803.3,2803.2,0.505504]
[1763976723055,0.002,2803.3,2803.2,14.47434959]
[1763976723265,0.002,2803.3,2803.2,10.67419998]
[1763976723452,0.002,2803.3,2803.2,8.56886298]
[1763976724051,0.002,2803.3,2803.2,9.47585562]
[1763976724463,0.002,2803.6,2803.2,9.47585562]
[1763976724464,0.002,2803.6,2803.4,0.405504]
[1763976724649,0.002,2803.6,2803.5,19.04551344]
[1763976724824,0.002,2803.6,2803.5,18.00129581]
[1763976725317,0.002,2803.6,2803.5,21.56826566]
[1763976725562,0.002,2803.6,2803.5,20.94155266]
[1763976726561,0.002,2803.6,2803.5,27.65466966]
[1763976727062,0.4529,2803.6,2803.5,16.3079437]
[1763976727361,0.9207,2803.6,2803.5,4.0623327]
[1763976727561,0.4529,2803.6,2803.5,1.54349664]
[1763976727767,0.0012,2803.6,2803.5,21.06904729]
[1763976727969,0.0012,2803.6,2803.5,21.0333776]
[1763976728483,0.0012,2803.6,2803.5,21.0427776]
[1763976728769,0.0012,2803.6,2803.5,42.3631186]
[1763976728938,0.0012,2803.6,2803.5,33.09093407]
[1763976729255,0.0012,2803.6,2803.5,33.10033407]
[1763976729459,0.0012,2803.6,2803.5,33.09093407]
[1763976729881,0.0012,2803.6,2803.5,40.90684707]
[1763976730181,0.0012,2803.6,2803.5,39.21884707]
[1763976730386,0.0012,2803.6,2803.5,35.70296207]
[1763976730585,0.0012,2803.6,2803.5,19.14463607]
[1763976730751,0.0012,2803.6,2803.5,26.36783607]
[1763976731755,0.0012,2803.6,2803.5,15.87261507]
[1763976731957,0.0012,2803.6,2803.5,31.0651176]
[1763976732154,0.0012,2803.6,2803.5,30.5284086]
[1763976732361,0.6615,2804.4,2803.6,1.31249664]
[1763976732669,0.1937,2804.4,2804.3,0.505504]
[1763976732880,0.1937,2804.4,2804.3,0.736504]
[1763976733187,1.1124,2804.4,2804.3,0.736504]
[1763976733766,1.1124,2804.4,2804.3,0.505504]
[1763976734000,1.1124,2804.4,2804.3,0.636504]
[1763976734661,1.1124,2804.4,2804.3,0.405504]
[1763976734856,1.1124,2804.4,2804.3,0.505504]
[1763976735294,1.1124,2804.4,2804.3,0.91266173]
[1763976735978,1.1124,2804.4,2804.3,1.14366173]
[1763976736290,1.1124,2804.4,2804.3,0.505504]
[1763976736656,1.1124,2804.4,2804.3,0.405504]
[1763976738286,0.6446,2804.4,2804.3,0.505504]
[1763976739020,0.4678,2804.8,2804.7,0.405504]
[1763976739320,0.9187,2804.8,2804.7,0.405504]
[1763976739501,0.002,2806.5,2804.6,0.1]
[1763976739502,0.4678,2805.0,2804.6,0.505504]
[1763976739811,0.4509,2804.8,2804.7,0.1]
[1763976740023,0.4509,2804.7,2804.6,0.405504]
[1763976740177,0.4529,2804.7,2804.6,0.9257366]
[1763976740378,0.9207,2804.7,2804.6,0.505504]
[1763976740711,0.9207,2804.7,2804.6,0.636504]
[1763976741312,0.9207,2804.7,2804.6,0.505504]
[1763976741613,0.9207,2804.7,2804.6,0.405504]
[1763976741820,0.9207,2804.7,2804.6,0.636504]
[1763976742113,0.9207,2804.7,2804.6,0.405504]
[1763976743114,0.9207,2804.7,2804.6,0.505504]
[1763976744231,0.9207,2804.7,2587.7,0.19278144]
[1763976744232,0.9207,2804.7,2802.9,0.001]
[1763976744517,0.6479,2803.6,2802.9,0.232]
[1763976744813,0.6479,2803.6,2803.2,0.03667351]
[1763976744983,0.197,2803.8,2803.3,0.231]
[1763976745430,0.197,2803.8,2803.2,0.001]
[1763976745431,0.4509,2803.6,2803.4,0.231]
[1763976745632,0.4509,2803.6,2803.2,0.001]
[1763976745816,0.9187,2803.6,2803.2,0.001]
[1763976747884,0.3399,2803.3,2803.2,0.001]
[1763976748106,0.8077,2803.3,2802.9,0.001]
[1763976748400,0.4498,2803.0,2802.5,0.001]
[1763976748550,0.231,2803.4,2802.5,0.001]
[1763976748551,0.538,2802.6,2802.5,0.001]
[1763976749360,0.197,2803.1,2802.6,0.405504]
[1763976749521,0.197,2803.4,2802.9,0.405504]
[1763976749709,0.197,2803.4,2803.1,0.405504]
[1763976750017,0.4509,2803.0,2802.9,0.231]
[1763976750215,0.4509,2803.0,2802.9,0.636504]
[1763976750541,0.9187,2803.0,2802.9,0.405504]
[1763976750956,0.9187,2803.0,2802.5,0.001]
[1763976751111,0.167,2802.9,2802.6,0.405504]
[1763976751311,0.167,2803.1,2802.6,0.44118515]
[1763976751559,0.1662,2803.1,2802.8,0.405504]
[1763976751912,0.197,2803.8,2802.8,0.405504]
[1763976752127,0.4678,2803.6,2802.9,1.17366997]
[1763976752848,0.6648,2803.8,2803.0,0.405504]
[1763976753426,0.4509,2803.1,2802.7,1.11442763]
[1763976753671,0.4678,2803.7,2802.9,0.405504]
[1763976753872,0.197,2803.0,2802.8,0.405504]
[1763976754270,0.4509,2802.9,2802.8,0.405504]
[1763976754569,0.197,2803.0,2802.6,0.636504]
[1763976754880,0.197,2803.0,2802.5,0.001]
[1763976754881,0.4497,2802.6,2802.5,0.001]
[1763976755372,0.197,2803.0,2802.5,0.4581]
[1763976755595,0.197,2803.0,2802.6,0.44118515]
[1763976755873,0.6648,2803.0,2802.6,0.44118515]
[1763976756077,0.6648,2803.0,2802.6,0.405504]
[1763976756277,0.4678,2803.3,2802.8,0.405504]
[1763976757330,0.4678,2803.3,2802.6,0.405504]
[1763976757763,0.4678,2803.3,2802.6,0.96366551]
[1763976758259,0.4678,2803.3,2802.7,0.03567988]
[1763976758723,0.4678,2803.3,2802.8,0.231]
[1763976759161,0.675,2802.9,2802.8,0.231]
[1763976759859,1.1646,2802.9,2802.5,0.406504]
[1763976760163,0.4896,2803.2,2802.5,1.84867387]
[1763976760360,0.4896,2803.2,2802.6,0.03568115]
[1763976760561,0.4896,2803.2,2802.6,0.94267379]
[1763976760861,0.4896,2803.5,2802.9,0.405504]
[1763976761230,0.4896,2803.7,2803.1,0.405504]
[1763976761430,0.197,2803.8,2803.3,0.405504]
[1763976761629,0.6866,2804.0,2803.3,0.875404]
[1763976761864,0.197,2804.0,2803.5,0.405504]
[1763976762063,0.4896,2804.3,2803.7,0.405504]
[1763976762635,0.4916,2804.7,2803.9,0.405504]
[1763976762828,0.4916,2804.7,2804.1,0.405504]
[1763976764255,0.4878,2804.2,2803.6,1.97899741]
[1763976764430,0.4916,2804.7,2803.8,0.405504]
[1763976764634,0.4896,2804.6,2803.8,0.405504]
[1763976765066,0.4896,2804.6,2804.0,0.405504]
[1763976765741,0.4789,2804.1,2803.2,4.541265]
[1763976765942,0.312,2804.0,2803.4,1.13799264]
[1763976766148,0.312,2804.0,2803.5,0.82718447]
[1763976766347,0.1811,2803.9,2803.6,0.405504]
[1763976767204,0.1811,2803.9,2803.6,0.636504]
[1763976767676,0.1811,2804.2,2803.6,0.636504]
[1763976767880,0.1811,2804.2,2803.6,0.67217242]
[1763976768181,0.002,2804.7,2803.6,0.67217242]
[1763976768182,0.002,2804.7,2803.8,0.405504]
[1763976768377,0.4835,2804.6,2803.8,0.405504]
[1763976768879,0.4835,2804.6,2803.9,0.03566461]
[1763976769082,0.4835,2804.6,2804.0,0.231]
[1763976769283,0.4835,2804.6,2803.8,0.405504]
[1763976769484,0.4835,2804.6,2804.0,0.405504]
[1763976770391,0.4835,2804.6,2804.0,0.44116733]
[1763976770853,0.4789,2804.1,2804.0,0.405504]
[1763976771467,0.9624,2804.1,2803.7,0.405504]
[1763976771667,0.002,2804.7,2803.8,0.231]
[1763976771668,0.4835,2804.5,2803.8,0.231]
[1763976771905,0.002,2804.7,2803.9,9.20482261]
[1763976772104,0.002,2804.7,2803.8,7.85735211]
[1763976772105,0.002,2804.7,2804.1,0.405504]
[1763976772403,0.002,2804.7,2803.8,7.85735211]
[1763976772404,0.002,2804.7,2804.3,0.405504]
[1763976773361,0.4855,2804.7,2804.3,0.405504]
[1763976773770,0.4789,2804.4,2804.3,0.405504]
[1763976774083,0.4855,2804.7,2804.3,0.405504]
[1763976774283,0.4855,2804.7,2804.6,0.405504]
[1763976774766,0.9644,2804.7,2804.6,0.405504]
[1763976775190,0.9636,2804.7,2804.6,0.405504]
[1763976775499,0.9636,2804.7,2804.2,0.231]
[1763976775500,0.9636,2804.7,2804.4,0.1]
[1763976775792,0.4801,2804.7,2804.5,0.405504]
[1763976775994,0.9636,2804.7,2804.5,0.405504]
[1763976776195,0.3241,2804.6,2804.5,0.505504]
[1763976776683,0.3241,2804.6,2804.5,0.405504]
[1763976776997,0.0012,2804.7,2804.5,0.505504]
[1763976777793,0.0012,2804.7,2804.6,0.1]
[1763976779013,0.0012,2804.7,2804.5,0.505504]
[1763976779209,0.0012,2804.7,2804.5,1.21443666]
[1763976779416,0.0012,2804.7,2804.6,0.1]
[1763976779613,0.0012,2804.7,2804.5,1.21443666]
[1763976779614,0.4789,2804.6,2804.5,0.505504]
[1763976779978,0.4789,2804.6,2804.5,0.405504]
[1763976780180,0.4789,2804.6,2804.5,0.505504]
[1763976780584,0.9624,2804.6,2804.1,1.04529264]
[1763976780778,0.4774,2804.2,2803.6,6.67682999]
[1763976781017,0.0012,2804.7,2803.8,0.231]
[1763976781201,0.4847,2804.7,2804.3,0.1]
[1763976781602,0.4789,2804.4,2804.3,0.405504]
[1763976782018,0.9624,2804.4,2804.3,0.405504]
[1763976782323,0.9624,2804.4,2802.8,0.001]
[1763976782482,0.3248,2803.9,2803.1,0.3263]
[1763976782683,0.3248,2803.9,2803.2,0.1]
[1763976782908,0.3248,2803.9,2803.1,1.23329264]
[1763976782909,0.3248,2803.9,2803.1,1.00229264]
[1763976783125,0.4835,2803.8,2803.0,0.001]
[1763976783321,0.3264,2803.1,2803.0,0.001]
[1763976783789,0.8099,2803.1,2803.0,0.001]
[1763976784319,0.4835,2803.4,2803.0,0.001]
[1763976784909,0.4835,2803.8,2803.1,0.0953]
[1763976785112,0.1811,2804.3,2803.2,0.73013061]
[1763976785309,0.4835,2804.0,2803.5,0.405504]
[1763976785513,0.4835,2804.0,2803.3,0.231]
[1763976785713,0.4835,2804.0,2802.8,0.4935]
[1763976785714,0.4835,2804.0,2803.0,0.101]
[1763976785910,0.4774,2803.1,2803.0,0.001]
[1763976786316,0.9609,2803.1,2803.0,0.001]
[1763976787029,0.4811,2803.5,2803.0,0.001]
[1763976787806,0.4845,2803.1,2803.0,0.001]
[1763976788324,0.9656,2803.1,2803.0,0.001]
[1763976789539,0.4811,2803.5,2803.1,0.405504]
[1763976789923,0.4845,2803.2,2803.0,0.001]
[1763976790098,0.3217,2803.1,2803.0,0.001]
[1763976790597,0.8028,2803.1,2803.0,0.001]
[1763976795135,0.3217,2803.1,2803.0,0.001]
[1763976795336,0.8028,2803.1,2803.0,0.001]
[1763976795810,0.4811,2803.5,2803.0,0.001]
[1763976796224,0.4811,2803.5,2803.0,0.406504]
[1763976796707,0.6622,2804.3,2803.5,0.405504]
[1763976796907,0.1811,2804.3,2803.9,0.1]
[1763976797102,0.1811,2804.3,2803.8,0.405504]
[1763976797307,0.6622,2804.3,2803.8,0.405504]
[1763976797610,0.6622,2804.3,2803.1,0.0953]
[1763976797611,0.4845,2803.9,2803.1,0.0953]
[1763976797806,0.4845,2803.9,2803.0,0.90799264]
[1763976798006,0.4811,2803.8,2803.0,0.001]
[1763976798907,0.4803,2803.8,2803.0,0.001]
[1763976799208,0.4845,2803.1,2803.0,0.001]
[1763976799941,0.231,2804.1,2803.0,0.4551]
[1763976800244,0.1811,2804.3,2803.1,0.505504]
[1763976800461,0.1811,2804.3,2803.3,0.505504]
[1763976800762,0.1811,2804.3,2803.3,1.35498706]
[1763976800926,0.1811,2804.3,2803.5,0.405504]
[1763976801150,0.4811,2804.2,2803.4,0.405504]
[1763976801358,0.4845,2803.5,2803.4,0.405504]
[1763976801733,0.4811,2803.8,2803.3,0.405504]
[1763976801937,0.4811,2804.2,2803.4,0.1]
[1763976802130,0.1811,2804.3,2803.5,7.08233399]
[1763976802364,0.1811,2804.3,2803.7,0.405504]
[1763976802735,0.1811,2804.3,2803.8,0.1]
[1763976803266,0.1811,2804.3,2803.7,0.405504]
[1763976803430,0.1811,2804.3,2803.7,0.505504]
[1763976803638,0.186,2804.5,2804.0,0.1]
[1763976803881,0.186,2804.5,2803.9,0.505504]
[1763976804056,0.186,2804.5,2803.9,1.31443666]
[1763976804261,0.186,2804.5,2804.0,0.1]
[1763976804445,0.186,2804.5,2804.1,0.1]
[1763976804789,0.6671,2804.5,2803.9,1.21443666]
[1763976805071,0.4811,2804.4,2803.9,0.405504]
[1763976805481,0.4811,2804.4,2803.4,0.90699264]
[1763976805482,0.4845,2804.0,2803.4,0.90699264]
[1763976805634,0.4845,2804.0,2803.5,0.1]
[1763976806066,0.4845,2804.0,2803.5,0.505504]
[1763976806260,0.4811,2804.4,2803.6,0.1]
[1763976806454,0.4811,2804.4,2803.7,0.405504]
[1763976806661,0.4811,2804.4,2803.9,0.1]
[1763976806879,0.186,2804.5,2803.7,0.1]
[1763976807083,0.186,2804.5,2803.9,0.1]
[1763976807240,0.186,2804.5,2804.0,0.1]
[1763976807434,0.186,2804.5,2803.7,0.405504]
[1763976807779,0.4811,2804.4,2803.8,0.1]
[1763976808139,0.4811,2804.4,2803.7,0.405504]
[1763976808342,0.4811,2804.4,2803.5,0.405504]
[1763976808588,0.4811,2804.4,2803.6,0.1]
[1763976809801,0.4811,2804.3,2803.5,0.83203266]
[1763976809966,0.4811,2804.3,2803.5,0.93203266]
[1763976810304,0.4811,2804.3,2803.5,0.83203266]
[1763976810507,0.4811,2804.3,2803.5,0.001]
[1763976814577,0.002,2804.4,2803.8,0.90699264]
[1763976815088,0.002,2804.4,2804.0,0.1]
[1763976815785,0.002,2804.4,2803.6,1.101404]
[1763976815786,0.4811,2804.3,2803.6,1.101404]
[1763976816114,0.4811,2804.3,2803.8,0.1]
[1763976816318,0.002,2804.4,2804.0,0.1]
[1763976816706,0.002,2804.4,2803.9,0.1]
[1763976816910,0.002,2804.4,2803.8,0.405504]
[1763976817122,0.002,2804.4,2803.9,0.1]
[1763976817719,0.4892,2804.4,2803.8,0.1]
[1763976817916,0.4892,2804.4,2803.5,0.001]
[1763976818127,0.4892,2804.4,2803.6,0.1]
[1763976818725,0.4892,2804.4,2803.5,0.406504]
[1763976818922,0.4892,2804.4,2803.5,0.506504]
[1763976819098,0.4892,2804.4,2803.7,0.1]
[1763976819850,0.4892,2804.4,2803.5,0.001]
[1763976820001,0.4892,2804.4,2803.6,0.1]
[1763976820413,0.4892,2804.4,2803.5,0.8784234]
[1763976820798,0.4892,2804.4,2803.5,0.49656969]
[1763976821003,0.4892,2804.4,2803.8,0.1]
[1763976821425,0.002,2804.4,2803.8,0.405504]
[1763976821793,0.002,2804.4,2804.0,0.1]
[1763976822392,0.002,2804.4,2803.9,0.2387]
[1763976822589,0.0012,2804.4,2804.0,0.1]
[1763976822831,0.0012,2804.4,2803.9,0.1387]
[1763976823039,0.4884,2804.4,2803.9,0.1]
[1763976823254,0.4683,2804.0,2803.5,0.506504]
[1763976824355,0.4872,2804.2,2803.5,0.90207369]
[1763976824561,0.0012,2804.4,2803.5,0.90207369]
[1763976824743,0.4884,2804.4,2803.8,0.1]
[1763976824947,0.4884,2804.4,2803.7,0.405504]
[1763976825662,0.4884,2804.4,2803.6,0.405504]
[1763976825863,0.4884,2804.4,2803.8,0.1]
[1763976827458,0.4884,2804.4,2803.6,0.405504]
[1763976827660,0.0012,2804.4,2803.5,0.406504]
[1763976827958,0.0012,2804.4,2804.3,1.141004]
[1763976828159,0.4944,2804.3,2803.6,0.48805304]
[1763976828470,0.4857,2804.2,2803.5,0.001]
[1763976828790,0.4857,2804.2,2803.6,0.1]
[1763976829302,0.4857,2804.2,2803.8,0.001]
[1763976829596,0.4939,2803.9,2803.8,0.001]
[1763976830574,0.9883,2803.9,2803.8,0.001]
[1763976831995,0.2951,2803.9,2803.8,0.001]
[1763976833298,0.7895,2803.9,2803.8,0.001]
[1763976833884,0.2951,2803.9,2803.8,0.001]
[1763976834078,0.7895,2803.9,2803.8,0.001]
[1763976839390,0.2951,2803.9,2803.8,0.001]
[1763976839595,0.4857,2803.9,2803.8,0.001]
[1763976839794,0.9801,2803.9,2803.8,0.001]
[1763976841712,0.4857,2803.9,2803.8,0.001]
[1763976842016,0.9801,2803.9,2803.8,0.001]
[1763976842321,0.1988,2804.1,2803.8,0.001]
[1763976842529,0.4857,2803.9,2803.8,0.001]
[1763976842931,0.9801,2803.9,2803.8,0.001]
[1763976843430,0.1988,2804.3,2803.8,0.4978]
[1763976843829,0.6932,2804.3,2803.8,0.4978]
[1763976844532,0.1988,2804.3,2803.8,0.4978]
[1763976844739,0.4944,2804.2,2803.8,0.001]
[1763976845401,0.4857,2803.9,2803.8,0.001]
[1763976845934,0.1988,2804.3,2803.8,0.4978]
[1763976846230,0.4956,2804.4,2803.8,0.9879]
[1763976846231,0.0012,2804.4,2803.8,0.9879]
[1763976846433,0.0004,2804.4,2803.9,0.1]
[1763976846656,0.0004,2804.4,2803.8,0.001]
[1763976846657,0.6845,2803.9,2803.8,0.001]
[1763976847008,1.1758,2803.9,2803.8,0.001]
[1763976849715,0.6845,2803.9,2803.8,0.001]
[1763976850245,1.1758,2803.9,2803.8,0.001]
[1763976851208,0.1999,2804.1,2803.8,0.001]
[1763976852106,0.4631,2803.9,2803.8,0.001]
[1763976852306,0.9544,2803.9,2803.8,0.001]
[1763976853418,0.1999,2804.1,2803.8,0.001]
[1763976853929,0.6912,2804.3,2803.8,0.001]
[1763976854456,0.4913,2804.2,2803.8,0.001]
[1763976855528,0.1999,2804.3,2803.8,0.001]
[1763976856131,0.0004,2804.4,2803.8,0.4764]
[1763976856663,0.0004,2804.4,2804.3,0.602]
[1763976856858,0.0004,2804.4,2804.3,0.702]
[1763976857164,0.4635,2804.4,2803.8,0.001]
[1763976857679,0.4913,2804.3,2803.8,0.001]
[1763976858437,0.0004,2804.4,2803.8,0.001]
[1763976862148,0.4917,2804.4,2803.8,0.001]
[1763976862986,0.663,2803.9,2803.8,0.001]
[1763976863348,0.4917,2804.4,2803.8,0.001]
[1763976864182,0.0004,2804.4,2803.8,0.001]
[1763976865285,0.0004,2804.4,2803.8,0.5764]
[1763976865484,0.0004,2804.4,2803.8,0.4764]
[1763976865788,0.0004,2804.4,2803.9,0.1]
[1763976866288,0.0004,2804.4,2804.0,0.4754]
[1763976866754,0.0004,2804.4,2804.3,0.4633]
[1763976866946,0.0004,2804.4,2803.8,0.406504]
[1763976867350,0.0004,2804.4,2803.8,0.506504]
[1763976867548,0.0004,2804.4,2803.8,0.001]
[1763976868090,0.663,2803.9,2803.8,0.001]
[1763976868449,1.1543,2803.9,2803.8,0.001]
[1763976869788,0.663,2803.9,2803.8,0.001]
[1763976870159,0.6622,2803.9,2803.8,0.001]
[1763976870889,1.1535,2803.9,2803.8,0.001]
[1763976872582,0.4631,2803.9,2803.8,0.001]
[1763976872788,0.9544,2803.9,2803.8,0.001]
[1763976875392,0.1999,2804.0,2803.8,0.001]
[1763976875593,0.9544,2803.9,2803.8,0.001]
[1763976878909,0.405504,2803.8,2803.5,0.001]
[1763976879136,0.3118,2803.6,2803.5,0.001]
[1763976879640,0.7772,2803.6,2803.5,0.001]
[1763976879958,0.405504,2803.5,2803.2,0.001]
[1763976880093,0.405504,2803.2,2803.0,0.001]
[1763976880294,0.722804,2803.1,2803.0,0.001]
[1763976880729,1.188204,2803.1,2803.0,0.001]
[1763976886817,4.55361948,2803.1,2803.0,0.001]
[1763976887020,6.71993326,2803.1,2803.0,0.001]
[1763976887251,6.42649326,2803.1,2803.0,0.001]
[1763976888318,3.34548864,2802.7,2802.4,0.001]
[1763976888518,1.38729264,2802.6,2802.4,0.001]
[1763976888766,0.9392,2802.6,2802.4,0.001]
[1763976888926,0.4803,2802.6,2802.4,0.001]
[1763976889132,0.7103,2802.6,2802.4,0.001]
[1763976889330,0.1806,2803.1,2802.5,0.4641]
[1763976889753,0.23,2803.0,2802.5,0.4641]
[1763976889919,0.23,2802.9,2802.6,0.484]
[1763976890248,0.23,2802.9,2802.5,0.001]
[1763976891273,0.4589,2803.3,2802.5,0.001]
[1763976891477,0.4589,2803.3,2802.5,0.485]
[1763976891681,0.23,2803.2,2802.5,0.001]
[1763976892082,0.4589,2803.1,2802.5,0.001]
[1763976892450,0.6804,2802.6,2802.5,0.001]
[1763976892659,0.9104,2802.6,2802.5,0.001]
[1763976892865,1.3693,2802.6,2802.5,0.001]
[1763976893645,1.1393,2802.6,2802.5,0.001]
[1763976893890,0.9096,2802.6,2802.5,0.001]
[1763976894343,1.3685,2802.6,2802.5,0.001]
[1763976895244,1.774004,2802.6,2802.5,0.001]
[1763976895444,1.3685,2802.6,2802.5,0.001]
[1763976895674,1.774004,2802.6,2802.5,0.001]
[1763976899002,2.00687445,2802.6,2802.5,0.001]
[1763976899219,1.77687445,2802.6,2802.5,0.001]
[1763976899390,2.00687445,2802.6,2802.5,0.001]
[1763976901794,1.77687445,2802.6,2802.5,0.001]
[1763976902001,2.00687445,2802.6,2802.5,0.001]
[1763976904112,0.23287045,2802.6,2802.5,0.001]
[1763976904404,0.4609,2802.9,2802.5,0.001]
[1763976904617,0.002,2802.9,2802.5,0.001]
[1763976904816,0.23,2802.8,2802.5,0.485]
[1763976905022,0.23,2802.8,2802.5,0.001]
[1763976906006,0.23,2802.8,2802.7,0.4631]
[1763976907200,0.23,2802.8,2802.5,0.485]
[1763976907201,0.23,2802.8,2802.5,0.001]
[1763976907625,0.23,2802.7,2802.5,0.001]
[1763976907834,0.002,2802.9,2802.8,0.4621]
[1763976908213,0.002,2802.9,2802.8,0.9465]
[1763976908809,0.002,2802.9,2802.5,0.001]
[1763976908999,0.002,2802.9,2802.8,0.4621]
[1763976910436,0.002,2802.9,2802.8,0.9465]